bitfinex/quotes_SOLUSD_20260214
["timestamp","ask_amount","ask_price","bid_price","bid_amount"]
[1771083322973,1.9605458,87.539,87.512,64.35135663]
[1771083323372,1.9605458,87.539,87.513,1.82393081]
[1771083323595,2.92635687,87.54,87.513,1.82393081]
[1771083324094,1.9605458,87.545,87.513,1.82393081]
[1771083325495,1.9605458,87.545,87.515,1.82309983]
[1771083326067,1.9605458,87.539,87.512,51.1]
[1771083326269,1.9605458,87.519,87.512,44.50047666]
[1771083326479,1.9605458,87.519,87.496,2.03673774]
[1771083326678,2.92635687,87.51,87.472,2.03673774]
[1771083326867,2.92635687,87.5,87.472,2.03673774]
[1771083327679,11.42870204,87.499,87.473,13.46883678]
[1771083328493,2.92635687,87.49,87.473,2.03673774]
[1771083329498,2.92635687,87.49,87.462,2.03673774]
[1771083330197,2.92635687,87.49,87.464,2.03673774]
[1771083332303,2.92635687,87.49,87.466,2.03673774]
[1771083333201,2.92635687,87.48,87.466,2.03673774]
[1771083335698,2.92635687,87.48,87.459,2.03673774]
[1771083335699,14.35754758,87.48,87.459,2.03673774]
[1771083338284,2.92635687,87.47,87.453,2.03673774]
[1771083338484,2.92635687,87.46,87.447,11.43543157]
[1771083338685,2.92635687,87.46,87.446,2.03673774]
[1771083339088,2.92635687,87.46,87.444,51.42]
[1771083339287,2.92635687,87.45,87.432,16.27022744]
[1771083339489,2.92635687,87.44,87.432,16.27022744]
[1771083339697,2.92635687,87.44,87.432,14.2334897]
[1771083340011,2.92635687,87.44,87.425,2.03673774]
[1771083340191,2.92635687,87.43,87.425,2.03673774]
[1771083341920,2.92635687,87.44,87.425,2.03673774]
[1771083343510,2.92635687,87.44,87.407,51.5]
[1771083343511,2.92635687,87.43,87.418,2.03673774]
[1771083343907,14.36278155,87.44,87.418,2.03673774]
[1771083347502,2.92635687,87.43,87.412,2.03673774]
[1771083347702,0.06313453,87.439,87.412,2.03673774]
[1771083349010,14.36278155,87.44,87.414,2.03673774]
[1771083349421,2.92635687,87.43,87.414,2.03673774]
[1771083349803,0.0700167,87.439,87.414,2.03673774]
[1771083350500,2.92635687,87.43,87.414,2.03673774]
[1771083350917,0.0700167,87.439,87.414,2.03673774]
[1771083353621,0.08335324,87.451,87.414,2.03673774]
[1771083353801,28.58713573,87.452,87.414,2.03673774]
[1771083353802,2.93324551,87.44,87.414,2.03673774]
[1771083355399,3.02307029,87.44,87.414,2.03673774]
[1771083355605,2.93324551,87.43,87.414,2.03673774]
[1771083357824,2.93324551,87.43,87.398,28.60464608]
[1771083357825,2.93324551,87.42,87.41,1e-08]
[1771083358122,0.09611961,87.419,87.391,2.03673774]
[1771083358321,2.93324551,87.41,87.391,2.03673774]
[1771083358924,2.93324551,87.41,87.39,0.2]
[1771083359428,0.10226257,87.418,87.39,0.2]
[1771083359604,0.10226257,87.418,87.391,2.03673774]
[1771083359805,2.93324551,87.4,87.391,2.03673774]
[1771083360317,2.93324551,87.41,87.391,2.03673774]
[1771083362207,11.4395856,87.416,87.391,2.03673774]
[1771083362410,2.93324551,87.41,87.391,2.03673774]
[1771083362620,2.93324551,87.42,87.391,2.03673774]
[1771083362816,0.54987001,111.36,87.393,2.03673774]
[1771083363016,2.93324551,87.44,87.393,2.03673774]
[1771083363825,2.93324551,87.43,87.393,2.03673774]
[1771083364028,2.93324551,87.43,87.395,2.03673774]
[1771083364327,11.43785242,87.429,87.395,2.03673774]
[1771083364528,2.93324551,87.42,87.395,2.03673774]
[1771083366829,2.93324551,87.41,87.395,2.03673774]
[1771083367033,2.93324551,87.41,87.391,2.03673774]
[1771083367536,57.24,87.419,87.391,2.03673774]
[1771083368528,14.37236721,87.42,87.391,2.03673774]
[1771083369331,14.37236721,87.42,87.393,2.03673774]
[1771083369507,11.4391217,87.42,87.393,2.03673774]
[1771083369716,14.37236721,87.42,87.393,2.03673774]
[1771083371932,11.4391217,87.42,87.393,2.03673774]
[1771083372630,14.37236721,87.42,87.393,2.03673774]
[1771083373432,71.65236721,87.42,87.393,2.03673774]
[1771083373628,71.65236721,87.42,87.38,0.2]
[1771083373629,0.14435035,87.409,87.38,0.2]
[1771083373836,2.93324551,87.39,87.37,1e-08]
[1771083374029,2.93324551,87.38,87.349,2.10891684]
[1771083374235,2.93324551,87.36,87.342,2.10891684]
[1771083374531,57.28,87.389,87.343,11.44911441]
[1771083374731,2.93324551,87.38,87.344,2.10891684]
[1771083374935,2.93324551,87.37,87.344,2.10891684]
[1771083375332,2.93324551,87.36,87.337,2.10891684]
[1771083375538,14.38016704,87.36,87.337,2.10891684]
[1771083375927,2.93324551,87.36,87.337,2.10891684]
[1771083376125,5.86649102,87.35,87.327,1e-08]
[1771083376323,2.93324551,87.34,87.304,2.10891684]
[1771083376518,2.93324551,87.34,87.306,2.10891684]
[1771083376729,48.76,87.339,87.306,2.10891684]
[1771083377334,7.34886435,87.34,87.306,2.10891684]
[1771083377335,57.26,87.338,87.306,2.10891684]
[1771083378145,6.10378528,87.355,87.308,2.10891684]
[1771083378322,53.05156164,87.338,87.312,1.9947623]
[1771083378524,7.34886435,87.33,87.307,11.45383531]
[1771083378826,1.9550382,87.329,87.307,11.45383531]
[1771083379425,1.9550382,87.329,87.307,13.44859761]
[1771083379625,1.9550382,87.329,87.308,1.9947623]
[1771083379824,1.9550382,87.34,87.308,1.9947623]
[1771083380632,6.10378528,87.355,87.321,1.9947623]
[1771083380850,57.28,87.351,87.321,1.9947623]
[1771083381540,57.28,87.351,87.331,1.9947623]
[1771083382124,6.10378528,87.355,87.341,1.9947623]
[1771083382320,1.9550382,87.354,87.333,1.9947623]
[1771083382548,1.9550382,87.354,87.326,1.9947623]
[1771083383749,1.9550382,87.354,87.325,11.45145619]
[1771083383750,6.10378528,87.355,87.331,1.9947623]
[1771083383955,6.10378528,87.355,87.341,1.9947623]
[1771083384254,1.9550382,87.369,87.347,1.9947623]
[1771083384947,1.9550382,87.377,87.342,1.9947623]
[1771083385147,1.9550382,87.377,87.351,1.9947623]
[1771083386047,7.51274681,87.387,87.36,7.34886435]
[1771083386249,1.9550382,87.386,87.361,11.44675541]
[1771083386953,1.9550382,87.386,87.354,11.44758758]
[1771083387130,1.9550382,87.385,87.354,11.44758758]
[1771083387648,1.9550382,87.379,87.347,11.44856038]
[1771083388349,1.9550382,87.377,87.347,11.44856038]
[1771083389056,1.9550382,87.377,87.35,7.34886435]
[1771083390659,1.9550382,87.375,87.342,11.44917113]
[1771083391263,1.9550382,87.375,87.34,18.79833679]
[1771083394146,1.98910543,87.373,87.34,18.79833679]
[1771083395139,1.98910543,87.373,87.342,11.44924549]
[1771083395336,5.55770861,87.387,87.361,1.94805057]
[1771083396358,5.55770861,87.387,87.37,7.34886435]
[1771083397058,5.55770861,87.387,87.37,2.93505978]
[1771083397562,5.55770861,87.387,87.371,1.94805057]
[1771083397759,5.55770861,87.387,87.38,2.93505978]
[1771083398964,5.55770861,87.387,87.371,13.39349585]
[1771083399261,1.98910543,87.386,87.366,11.44603913]
[1771083399762,7.33669659,87.38,87.342,1.94805057]
[1771083399946,1.98910543,87.379,87.342,1.94805057]
[1771083400869,11.44348064,87.386,87.352,2.07105141]
[1771083400870,2.02928049,87.386,87.352,2.07105141]
[1771083401046,2.02928049,87.384,87.352,2.07105141]
[1771083401252,2.02928049,87.384,87.351,11.44806584]
[1771083401472,2.02928049,87.379,87.346,11.44869319]
[1771083401763,2.02928049,87.379,87.347,2.07105141]
[1771083402465,7.33669659,87.37,87.335,11.45005508]
[1771083402657,2.02928049,87.359,87.325,13.52249376]
[1771083403041,2.02928049,87.359,87.326,2.07105141]
[1771083404272,2.02928049,87.359,87.327,11.45121211]
[1771083404447,2.02928049,87.357,87.327,11.45121211]
[1771083405466,59.38928049,87.357,87.327,11.45121211]
[1771083405644,2.02928049,87.356,87.327,11.45121211]
[1771083405851,2.02928049,87.349,87.32,11.45200208]
[1771083406863,2.02928049,87.347,87.312,11.4531794]
[1771083407067,2.02928049,87.347,87.312,13.52423081]
[1771083409279,2.02928049,87.339,87.308,11.453703]
[1771083409575,2.02928049,87.329,87.308,11.453703]
[1771083409955,2.02928049,87.329,87.301,11.4545191]
[1771083410149,2.02928049,87.309,87.29,0.2]
[1771083410354,40.07052411,87.346,87.271,2.07105141]
[1771083410355,9.36597708,87.3,87.271,2.07105141]
[1771083410556,2.02928049,87.279,87.251,11.46118669]
[1771083410773,57.38,87.284,87.251,11.46118669]
[1771083411154,57.38,87.284,87.251,40.11415341]
[1771083411759,2.02928049,87.287,87.251,40.11415341]
[1771083412173,2.02928049,87.295,87.251,40.11415341]
[1771083412473,2.02928049,87.289,87.252,0.42911038]
[1771083412666,2.02928049,87.279,87.251,11.46118669]
[1771083412868,2.02928049,87.279,87.25,0.2]
[1771083413174,2.02928049,87.269,87.25,0.2]
[1771083413368,2.02928049,87.259,87.221,0.43543095]
[1771083413573,2.02928049,87.259,87.221,11.90055976]
[1771083413754,2.02928049,87.249,87.221,11.46512881]
[1771083414176,2.02928049,87.249,87.222,0.43543095]
[1771083414680,2.02928049,87.239,87.22,0.2]
[1771083415065,7.35989183,87.23,87.22,0.2]
[1771083415378,40.11093538,87.258,87.22,0.2]
[1771083415379,2.02928049,87.247,87.22,0.2]
[1771083415566,2.02928049,87.247,87.221,11.46512881]
[1771083416360,7.35989183,87.24,87.22,0.2]
[1771083416683,2.02928049,87.259,87.222,0.45402998]
[1771083417564,7.35989183,87.24,87.22,0.66006195]
[1771083417769,7.35989183,87.25,87.222,0.46006195]
[1771083417964,59.46928049,87.267,87.222,0.46006195]
[1771083418276,2.02928049,87.266,87.222,0.46006195]
[1771083418459,7.35989183,87.26,87.222,0.46006195]
[1771083418779,2.02928049,87.259,87.222,0.46006195]
[1771083419576,2.02928049,87.259,87.224,0.47194721]
[1771083420686,2.02928049,87.269,87.231,0.47776911]
[1771083421985,2.16965008,87.283,87.241,0.48921909]
[1771083422566,2.16965008,87.294,87.243,0.4948513]
[1771083422861,2.16965008,87.294,87.251,0.4948513]
[1771083423761,2.16965008,87.287,87.252,11.46105533]
[1771083424490,11.45632847,87.288,87.23,7.35989183]
[1771083424491,2.16965008,87.279,87.245,11.46188114]
[1771083424660,2.16965008,87.269,87.232,11.4635801]
[1771083424863,40.09714965,87.288,87.233,0.50592859]
[1771083424864,13.62597855,87.288,87.233,0.50592859]
[1771083425069,2.16965008,87.287,87.233,0.50592859]
[1771083425870,2.16965008,87.285,87.235,0.51137368]
[1771083427081,2.16965008,87.291,87.241,0.51676025]
[1771083427283,2.16965008,87.289,87.241,0.51676025]
[1771083428186,2.16965008,87.287,87.243,0.52210443]
[1771083428486,2.16965008,87.279,87.243,0.52210443]
[1771083429477,2.16965008,87.279,87.244,11.46210627]
[1771083429670,2.16965008,87.288,87.245,0.53261492]
[1771083430271,2.16965008,87.287,87.245,0.53261492]
[1771083432087,2.16965008,87.279,87.246,11.46184352]
[1771083433086,2.16965008,87.279,87.247,0.5479044]
[1771083434279,2.16965008,87.279,87.249,0.55782834]
[1771083434484,2.16965008,87.29,87.249,0.55782834]
[1771083434787,2.16965008,87.289,87.251,0.55782834]
[1771083435084,2.16965008,87.289,87.248,11.46158078]
[1771083435269,2.16965008,87.279,87.242,73.36233884]
[1771083435666,2.16965008,87.279,87.237,11.463026]
[1771083436394,2.16965008,87.249,87.22,0.2]
[1771083436569,2.16965008,87.249,87.221,11.46512881]
[1771083436884,2.16965008,87.259,87.222,0.56747978]
[1771083438374,2.16965008,87.249,87.22,0.2]
[1771083438972,2.16965008,87.239,87.22,0.2]
[1771083439171,2.16965008,87.229,87.2,11.4678899]
[1771083439889,2.16965008,87.229,87.194,11.4686293]
[1771083440778,2.16965008,87.229,87.195,0.78644023]
[1771083441373,2.16965008,87.227,87.19,11.66912032]
[1771083441578,2.16965008,87.227,87.192,11.4689421]
[1771083442679,2.16965008,87.219,87.192,11.4689421]
[1771083442879,11.4644716,87.226,87.192,11.4689421]
[1771083442880,2.16965008,87.228,87.193,0.79574153]
[1771083444397,2.16965008,87.228,87.192,11.4689421]
[1771083444606,57.42,87.239,87.191,0.72816692]
[1771083444607,2.16965008,87.209,87.191,0.72816692]
[1771083444979,2.16965008,87.228,87.193,0.80488255]
[1771083445611,2.16965008,87.239,87.193,0.80488255]
[1771083445910,2.16965008,87.239,87.201,0.80934467]
[1771083446099,2.16965008,87.26,87.213,0.80934467]
[1771083446294,2.16965008,87.26,87.221,0.80934467]
[1771083446898,2.16965008,87.259,87.222,40.12749076]
[1771083448096,2.16965008,87.258,87.222,11.46499736]
[1771083448303,2.16965008,87.249,87.222,11.46499736]
[1771083448485,2.16965008,87.249,87.211,12.28886295]
[1771083449089,2.16965008,87.258,87.212,0.8224195]
[1771083449908,2.16965008,87.249,87.212,0.8224195]
[1771083450487,2.16965008,87.258,87.212,0.8224195]
[1771083450686,49.96,87.266,87.212,0.8224195]
[1771083450687,2.16965008,87.249,87.212,0.8224195]
[1771083451199,2.16965008,87.249,87.214,0.83087652]
[1771083451803,2.28279439,87.268,87.214,0.83087652]
[1771083451990,7.35989183,87.26,87.214,0.83087652]
[1771083452196,2.28279439,87.259,87.214,0.83087652]
[1771083453023,2.28279439,87.249,87.214,0.83087652]
[1771083453190,2.28279439,87.249,87.216,0.84318065]
[1771083454208,2.28279439,87.249,87.218,0.84720214]
[1771083455695,2.28279439,87.265,87.22,0.85512093]
[1771083456007,9.64268622,87.25,87.22,0.85512093]
[1771083456211,2.28279439,87.25,87.22,0.85512093]
[1771083457203,2.28279439,87.265,87.22,0.85512093]
[1771083457799,2.28279439,87.263,87.222,0.86284827]
[1771083460314,2.28279439,87.261,87.224,0.87408323]
[1771083462619,2.25439095,87.259,87.226,0.88494274]
[1771083464911,2.25439095,87.259,87.228,0.89199986]
[1771083466027,2.25439095,87.269,87.228,0.89199986]
[1771083466520,2.25439095,87.269,87.227,40.12519058]
[1771083466713,2.25439095,87.259,87.227,40.12519058]
[1771083467219,2.25439095,87.259,87.227,28.66085042]
[1771083468996,2.25439095,87.249,87.223,11.46486591]
[1771083471514,2.25439095,87.249,87.224,0.91540787]
[1771083471715,2.25439095,87.249,87.223,11.46486591]
[1771083471920,2.25439095,87.249,87.224,0.91540787]
[1771083472120,2.25439095,87.257,87.224,0.91540787]
[1771083472620,2.25439095,87.257,87.223,40.1270307]
[1771083472621,2.94446813,87.27,87.225,2.11415254]
[1771083472998,2.94412007,87.27,87.225,2.11415254]
[1771083473426,2.94412007,87.27,87.227,2.11415254]
[1771083473725,2.94412007,87.26,87.227,2.11415254]
[1771083474819,2.25439095,87.259,87.227,2.11415254]
[1771083476214,2.25439095,87.259,87.229,2.11415254]
[1771083481028,2.25439095,87.259,87.23,40.12381061]
[1771083481231,2.25439095,87.259,87.231,2.11415254]
[1771083483929,2.25439095,87.259,87.233,2.19915906]
[1771083484231,2.24401896,87.271,87.233,2.19915906]
[1771083486413,2.24401896,87.271,87.241,2.19915906]
[1771083487211,2.24401896,87.269,87.235,2.19915906]
[1771083487618,10.50585424,87.283,87.224,28.66172389]
[1771083487619,2.24401896,87.259,87.224,28.66172389]
[1771083487918,2.24401896,87.258,87.225,11.46460303]
[1771083492525,2.24401896,87.258,87.225,13.66376209]
[1771083492730,2.24401896,87.258,87.226,2.19915906]
[1771083492921,56.98,87.257,87.226,2.19915906]
[1771083493530,59.22401896,87.257,87.228,2.19915906]
[1771083494222,59.22401896,87.257,87.231,2.19915906]
[1771083494422,2.24401896,87.257,87.231,2.19915906]
[1771083494618,2.24401896,87.257,87.227,40.12519058]
[1771083494619,2.24401896,87.269,87.241,2.19915906]
[1771083495627,2.24401896,87.269,87.243,2.19915906]
[1771083496040,2.24401896,87.279,87.243,2.19915906]
[1771083496239,8.57109968,87.282,87.251,2.19915906]
[1771083496437,2.24401896,87.309,87.261,2.19915906]
[1771083496634,2.24401896,87.299,87.261,2.19915906]
[1771083497455,2.24401896,87.309,87.261,2.19915906]
[1771083497746,132.12761545,87.329,87.272,2.19915906]
[1771083497747,2.24401896,87.307,87.272,2.19915906]
[1771083500544,2.24401896,87.307,87.28,2.94412007]
[1771083500729,2.24401896,87.307,87.281,2.19915906]
[1771083503246,2.24401896,87.307,87.283,2.19915906]
[1771083504946,2.24401896,87.307,87.282,11.45711601]
[1771083505453,2.24401896,87.305,87.274,13.65732529]
[1771083505838,2.24401896,87.305,87.275,2.19915906]
[1771083507542,2.24401896,87.305,87.277,2.19915906]
[1771083507853,28.62761545,87.329,87.276,40.10266281]
[1771083507854,56.92,87.31,87.281,2.19915906]
[1771083508034,2.24401896,87.309,87.281,2.19915906]
[1771083511253,2.24401896,87.309,87.282,40.09990604]
[1771083511547,2.24401896,87.309,87.283,2.33661641]
[1771083512337,2.24401896,87.309,87.282,11.45711601]
[1771083513339,2.33468882,87.307,87.274,11.45816623]
[1771083513737,2.33468882,87.307,87.274,42.44019822]
[1771083513942,2.33468882,87.307,87.275,2.33661641]
[1771083515259,2.33468882,87.305,87.275,2.33661641]
[1771083515560,2.33468882,87.305,87.276,42.43927922]
[1771083515763,2.33468882,87.305,87.277,2.33661641]
[1771083515935,52.41468882,87.305,87.277,2.33661641]
[1771083516259,2.33468882,87.304,87.281,2.33661641]
[1771083517750,50.08,87.305,87.283,2.33661641]
[1771083519449,2.33468882,87.304,87.283,2.33661641]
[1771083520479,2.33468882,87.304,87.284,11.45685348]
[1771083520773,56.9,87.319,87.285,2.33661641]
[1771083522259,14.39625559,87.32,87.284,40.0989872]
[1771083522260,56.9,87.318,87.286,11.45659097]
[1771083522449,56.9,87.318,87.287,2.32278163]
[1771083522651,2.4127547,87.317,87.287,2.32278163]
[1771083523542,2.4127547,87.317,87.288,11.45632847]
[1771083524550,2.4127547,87.317,87.289,2.32278163]
[1771083525872,2.4127547,87.317,87.29,40.09623094]
[1771083526076,2.4127547,87.317,87.291,2.32278163]
[1771083527781,2.4127547,87.317,87.293,2.32278163]
[1771083530485,2.4127547,87.317,87.294,11.45554104]
[1771083530791,2.4127547,87.316,87.294,11.45554104]
[1771083531369,2.4127547,87.316,87.282,11.45711601]
[1771083532769,2.4127547,87.316,87.282,30.96557166]
[1771083532975,2.4127547,87.316,87.282,28.64279003]
[1771083533173,2.4127547,87.316,87.282,30.96557166]
[1771083533992,2.4127547,87.309,87.269,2.32278163]
[1771083534186,2.4127547,87.299,87.269,2.32278163]
[1771083534385,2.4127547,87.299,87.262,2.32278163]
[1771083534583,2.4127547,87.298,87.262,2.32278163]
[1771083534987,2.4127547,87.296,87.262,2.32278163]
[1771083536087,2.4127547,87.296,87.264,2.32278163]
[1771083537888,2.4127547,87.294,87.264,2.32278163]
[1771083539193,2.4127547,87.289,87.258,2.32278163]
[1771083539584,2.4127547,87.279,87.252,13.78380777]
[1771083539898,2.4127547,87.279,87.252,11.46102614]
[1771083540705,2.4127547,87.269,87.242,11.46236904]
[1771083541089,2.4127547,87.269,87.239,2.32278163]
[1771083541614,2.4127547,87.269,87.238,11.46289461]
[1771083541786,2.2861344,87.259,87.238,11.46289461]
[1771083542586,2.2861344,87.259,87.234,11.46342022]
[1771083543219,2.2861344,87.259,87.228,40.12441253]
[1771083544011,2.2861344,87.259,87.229,2.25929867]
[1771083545797,2.2861344,87.259,87.231,2.25929867]
[1771083548501,2.2861344,87.258,87.232,11.46368305]
[1771083553207,2.2861344,87.258,87.232,2.25929867]
[1771083556301,2.2861344,87.258,87.215,4.61729252]
[1771083556502,2.2861344,87.256,87.202,52.2]
[1771083556697,2.2861344,87.256,87.205,4.61729252]
[1771083557511,2.2861344,87.256,87.216,28.66446523]
[1771083558398,2.2861344,87.256,87.221,2.25929867]
[1771083559503,2.2861344,87.274,87.231,2.25929867]
[1771083559805,2.67864981,87.275,87.241,2.25929867]
[1771083560011,2.2861344,87.299,87.261,2.25929867]
[1771083560924,2.2861344,87.289,87.257,52.2]
[1771083561417,2.94221983,87.28,87.257,52.2]
[1771083561622,2.2861344,87.269,87.233,2.25929867]
[1771083562116,2.2861344,87.269,87.235,2.25929867]
[1771083563024,2.2861344,87.259,87.225,2.25929867]
[1771083564205,2.2861344,87.258,87.218,2.25929867]
[1771083566429,2.2861344,87.239,87.204,2.25929867]
[1771083566724,2.2861344,87.239,87.205,11.46712994]
[1771083567112,2.2861344,87.239,87.196,28.67084695]
[1771083567113,2.2861344,87.229,87.198,11.46815293]
[1771083567807,56.82,87.245,87.191,12.19723038]
[1771083567808,2.2861344,87.219,87.191,12.19723038]
[1771083569833,2.2861344,87.209,87.191,0.72816692]
[1771083570127,2.2861344,87.199,87.174,0.2661986]
[1771083570309,2.2861344,87.189,87.174,0.2661986]
[1771083570508,4.61729252,87.242,87.174,0.2661986]
[1771083570509,2.2861344,87.219,87.177,11.47091549]
[1771083570709,2.2861344,87.219,87.178,2.25929867]
[1771083572223,2.27622798,87.209,87.178,2.25929867]
[1771083572929,2.27622798,87.214,87.18,2.27503377]
[1771083573108,2.27622798,87.219,87.18,2.27503377]
[1771083573919,2.27622798,87.219,87.181,2.27503377]
[1771083574433,13.74072781,87.226,87.181,2.27503377]
[1771083574811,11.46460303,87.225,87.183,2.27503377]
[1771083575122,2.27622798,87.238,87.191,2.27503377]
[1771083575636,2.94221983,87.23,87.191,2.27503377]
[1771083576015,2.27622798,87.231,87.191,2.27503377]
[1771083576533,2.27622798,87.231,87.201,2.27503377]
[1771083577033,2.27622798,87.231,87.202,11.46762688]
[1771083577215,2.27622798,87.265,87.224,2.27503377]
[1771083577422,2.27622798,87.289,87.25,2.94221983]
[1771083577733,2.27622798,87.295,87.261,2.27503377]
[1771083577932,2.27622798,87.293,87.261,2.27503377]
[1771083578121,2.27622798,87.279,87.245,2.27503377]
[1771083578834,2.27622798,87.289,87.251,2.27503377]
[1771083579030,2.27622798,87.289,87.253,2.27503377]
[1771083579920,2.27622798,87.289,87.261,2.27503377]
[1771083580119,2.27622798,87.293,87.261,2.27503377]
[1771083582228,2.46627334,87.269,87.234,2.48187031]
[1771083582428,2.46627334,87.26,87.234,2.48187031]
[1771083583736,2.46627334,87.26,87.236,2.48187031]
[1771083585548,2.46627334,87.26,87.237,11.463026]
[1771083586127,2.46627334,87.26,87.237,13.94489631]
[1771083586328,2.46627334,87.26,87.237,11.463026]
[1771083586529,2.46627334,87.26,87.237,13.94489631]
[1771083588941,2.46627334,87.26,87.22,2.94221983]
[1771083588942,2.46627334,87.26,87.231,2.48187031]
[1771083589148,2.46627334,87.259,87.222,2.48187031]
[1771083589761,28.63979032,87.292,87.241,2.48187031]
[1771083590046,2.46627334,87.289,87.261,2.48187031]
[1771083590840,0.53433586,87.296,87.271,2.48187031]
[1771083591045,0.53433586,87.296,87.272,11.45842882]
[1771083591234,0.53433586,87.296,87.273,2.48187031]
[1771083593033,0.53433586,87.296,87.275,2.48187031]
[1771083594850,2.46627334,87.311,87.281,2.48187031]
[1771083596531,2.46627334,87.309,87.281,2.48187031]
[1771083596849,2.46627334,87.307,87.281,2.48187031]
[1771083597055,2.46627334,87.307,87.281,13.93905068]
[1771083599548,2.46627334,87.307,87.274,2.48187031]
[1771083600131,11.4539665,87.306,87.271,11.45856011]
[1771083600356,2.46627334,87.299,87.271,11.45856011]
[1771083600943,2.46627334,87.289,87.262,11.45963896]
[1771083601244,2.46627334,87.289,87.257,11.46034325]
[1771083605040,2.94080399,87.28,87.251,11.46118669]
[1771083605236,2.37212168,87.279,87.251,11.46118669]
[1771083606558,2.37212168,87.279,87.251,13.76560168]
[1771083607342,2.37212168,87.279,87.252,2.30441499]
[1771083607553,11.45557638,87.294,87.261,2.30441499]
[1771083607757,11.45466133,87.301,87.261,2.30441499]
[1771083607948,11.45466133,87.301,87.271,2.30441499]
[1771083608554,11.45466133,87.301,87.27,2.94080399]
[1771083608555,11.45357294,87.309,87.273,2.30441499]
[1771083609447,2.37212168,87.308,87.273,2.30441499]
[1771083610460,2.37212168,87.306,87.275,2.30441499]
[1771083611662,2.37212168,87.306,87.237,61.9]
[1771083611663,2.37212168,87.329,87.291,2.30441499]
[1771083612253,2.37212168,87.319,87.285,2.30441499]
[1771083612449,2.37212168,87.309,87.276,11.45790366]
[1771083613368,2.37212168,87.335,87.28,2.94080399]
[1771083613565,2.37212168,87.333,87.301,2.30441499]
[1771083613869,2.47212168,87.34,87.311,2.30441499]
[1771083615650,2.47212168,87.34,87.312,11.4531794]
[1771083616275,2.37212168,87.319,87.293,11.45567227]
[1771083616567,2.37212168,87.319,87.281,2.30441499]
[1771083617156,2.37212168,87.309,87.281,2.30441499]
[1771083617554,2.37212168,87.309,87.281,13.76166227]
[1771083618169,2.37212168,87.299,87.281,11.45724728]
[1771083620566,2.37212168,87.299,87.272,11.45842882]
[1771083620778,2.37212168,87.299,87.273,2.30441499]
[1771083623059,2.37212168,87.299,87.275,2.30441499]
[1771083625381,2.37212168,87.299,87.276,13.76231865]
[1771083625883,2.37212168,87.299,87.277,2.30441499]
[1771083626389,2.37212168,87.329,87.291,2.30441499]
[1771083627484,2.37212168,87.319,87.292,11.45580351]
[1771083631980,2.37212168,87.319,87.288,28.64068579]
[1771083632185,2.37212168,87.319,87.288,30.98943415]
[1771083632378,2.37212168,87.319,87.289,2.34874836]
[1771083632576,2.27032413,87.342,87.301,2.34874836]
[1771083632779,2.27032413,87.342,87.311,2.34874836]
[1771083632990,3.04080399,87.35,87.311,2.34874836]
[1771083633171,2.27032413,87.339,87.311,2.34874836]
[1771083634180,2.27032413,87.338,87.311,2.34874836]
[1771083634382,2.27032413,87.338,87.301,2.34874836]
[1771083635389,11.44990095,87.337,87.301,13.80337087]
[1771083635602,2.27032413,87.309,87.257,11.46039859]
[1771083635778,2.27032413,87.299,87.257,40.11139507]
[1771083636192,2.27032413,87.299,87.26,2.94080399]
[1771083637584,2.27032413,87.298,87.263,1.98734198]
[1771083639895,2.27032413,87.298,87.265,1.98760213]
[1771083640285,2.27032413,87.308,87.271,1.98760213]
[1771083642785,2.3249655,87.306,87.273,1.98801677]
[1771083643206,2.94080399,87.3,87.272,11.45842882]
[1771083643400,2.3249655,87.299,87.272,11.45842882]
[1771083644880,2.3249655,87.299,87.27,1.98826777]
[1771083645608,2.3249655,87.299,87.26,2.94080399]
[1771083645609,2.3249655,87.299,87.26,1.98838654]
[1771083646615,2.3249655,87.297,87.261,11.45987325]
[1771083646916,2.3249655,87.297,87.261,13.44838072]
[1771083647592,2.3249655,87.279,87.261,8.94176938]
[1771083648007,2.3249655,87.279,87.253,11.46091846]
[1771083650020,2.94080399,87.27,87.246,13.851948]
[1771083650192,2.94080399,87.27,87.247,2.39010448]
[1771083650520,2.3249655,87.271,87.247,2.39010448]
[1771083652213,2.3249655,87.269,87.24,2.39010448]
[1771083653910,2.3249655,87.269,87.241,11.46250042]
[1771083654119,2.3249655,87.267,87.241,11.46250042]
[1771083654413,11.45895402,87.268,87.233,2.39010448]
[1771083654414,2.3249655,87.259,87.233,2.39010448]
[1771083654913,2.3249655,87.259,87.234,11.46342022]
[1771083655108,2.3249655,87.259,87.233,2.39010448]
[1771083655307,5.26576949,87.25,87.229,11.46400855]
[1771083655500,2.3249655,87.25,87.229,13.85411303]
[1771083655704,2.3249655,87.25,87.23,2.39010448]
[1771083656297,2.3249655,87.259,87.232,2.39010448]
[1771083657806,2.3249655,87.258,87.232,2.39010448]
[1771083658804,2.3249655,87.258,87.231,11.46381446]
[1771083659008,2.3249655,87.249,87.223,11.46478769]
[1771083659511,2.94480239,87.24,87.214,52.32]
[1771083659810,2.3249655,87.239,87.214,52.32]
[1771083660317,2.3249655,87.239,87.213,13.85615597]
[1771083660517,4.61729252,87.289,87.182,2.39010448]
[1771083660518,2.3249655,87.219,87.182,2.39010448]
[1771083660707,2.3249655,87.237,87.191,2.39010448]